[Event "*** Titled Tuesday Blitz"]
[Site "Chess.com"]
[Date "2020.11.24"]
[Round "1"]
[White "shnitez"]
[Black "EdmundPlayer"]
[Result "1-0"]
[WhiteElo "2508"]
[BlackElo "2111"]
[TimeControl "180+1"]
[EndTime "10:23:19 PST"]
[Termination "shnitez won by resignation"]

1. c4 {[%clk 0:03:00.9]} 1... e5 {[%clk 0:02:58.9]} 2. Nc3 {[%clk 0:03:00.9]}
2... Nf6 {[%clk 0:02:58.1]} 3. Nf3 {[%clk 0:03:01]} 3... Nc6 {[%clk 0:02:57.4]}
4. e3 {[%clk 0:03:01.3]} 4... d5 {[%clk 0:02:55.4]} 5. cxd5 {[%clk 0:03:00.9]}
5... Nxd5 {[%clk 0:02:55.9]} 6. Bb5 {[%clk 0:03:01.4]} 6... Nxc3 {[%clk
0:02:25.9]} 7. bxc3 {[%clk 0:03:01.3]} 7... Bd7 {[%clk 0:02:24.8]} 8. d4 {[%clk
0:02:57.8]} 8... e4 {[%clk 0:02:15]} 9. Nd2 {[%clk 0:02:57.5]} 9... Qg5 {[%clk
0:02:09.8]} 10. Bf1 {[%clk 0:02:55.2]} 10... Qg6 {[%clk 0:02:02.1]} 11. g3
{[%clk 0:02:54.7]} 11... Be7 {[%clk 0:01:46.5]} 12. Bg2 {[%clk 0:02:54.6]} 12...
f5 {[%clk 0:01:46.4]} 13. Rb1 {[%clk 0:02:54]} 13... b6 {[%clk 0:01:36.7]} 14.
f3 {[%clk 0:02:20.2]} 14... O-O {[%clk 0:01:23.3]} 15. O-O {[%clk 0:02:17.9]}
15... exf3 {[%clk 0:01:09.5]} 16. Bxf3 {[%clk 0:02:09.9]} 16... Rae8 {[%clk
0:01:09.1]} 17. Qc2 {[%clk 0:01:22.4]} 17... Na5 {[%clk 0:01:06.1]} 18. e4
{[%clk 0:01:16.5]} 18... fxe4 {[%clk 0:01:03.8]} 19. Bxe4 {[%clk 0:01:16.9]}
19... Qh5 {[%clk 0:00:59.9]} 20. Nf3 {[%clk 0:01:04.9]} 20... Bd6 {[%clk
0:00:48.1]} 21. Bd2 {[%clk 0:00:51.4]} 21... Kh8 {[%clk 0:00:47]} 22. Rbe1
{[%clk 0:00:46.3]} 22... Bh3 {[%clk 0:00:44]} 23. Rf2 {[%clk 0:00:44.7]} 23...
Re7 {[%clk 0:00:42.3]} 24. Bxh7 {[%clk 0:00:22.9]} 24... Rxe1+ {[%clk
0:00:38.9]} 25. Bxe1 {[%clk 0:00:21.1]} 25... Rxf3 {[%clk 0:00:38.3]} 26. Bg6
{[%clk 0:00:19.3]} 26... Rxf2 {[%clk 0:00:37.4]} 27. Bxf2 {[%clk 0:00:14.6]}
27... Qf3 {[%clk 0:00:34.7]} 28. Be4 {[%clk 0:00:15]} 28... Qf6 {[%clk
0:00:33.5]} 29. Qe2 {[%clk 0:00:14.6]} 29... g6 {[%clk 0:00:30.6]} 30. c4 {[%clk
0:00:11.3]} 30... Kg7 {[%clk 0:00:28.8]} 31. c5 {[%clk 0:00:11]} 31... bxc5
{[%clk 0:00:27.7]} 32. dxc5 {[%clk 0:00:11.9]} 32... Be5 {[%clk 0:00:27.3]} 33.
c6 {[%clk 0:00:12.1]} 33... Bd4 {[%clk 0:00:26.9]} 34. Bf3 {[%clk 0:00:07.5]}
34... Bxf2+ {[%clk 0:00:26.1]} 35. Kxf2 {[%clk 0:00:07.4]} 35... Bg4 {[%clk
0:00:24.4]} 36. h3 {[%clk 0:00:02.9]} 36... Qxf3+ {[%clk 0:00:24.4]} 37. Qxf3
{[%clk 0:00:03.4]} 37... Bxf3 {[%clk 0:00:25.1]} 38. Kxf3 {[%clk 0:00:04.3]}
38... Nxc6 {[%clk 0:00:25.5]} 39. Ke4 {[%clk 0:00:05.2]} 39... Nb4 {[%clk
0:00:25.6]} 40. a3 {[%clk 0:00:04.7]} 40... Nc2 {[%clk 0:00:24.1]} 41. a4 {[%clk
0:00:05.3]} 41... Nb4 {[%clk 0:00:18.7]} 42. Kd4 {[%clk 0:00:05.6]} 42... a5
{[%clk 0:00:18.1]} 43. Kc5 {[%clk 0:00:05.6]} 43... Kf6 {[%clk 0:00:18.1]} 44.
Kb5 {[%clk 0:00:06.1]} 44... Ke6 {[%clk 0:00:17.7]} 45. Kxa5 {[%clk 0:00:06.6]}
45... Nd3 {[%clk 0:00:11.8]} 46. Kb5 {[%clk 0:00:06.3]} 46... Kd6 {[%clk
0:00:10.8]} 47. a5 {[%clk 0:00:05.8]} 47... c5 {[%clk 0:00:07.3]} 48. a6 {[%clk
0:00:04.9]} 48... Kc7 {[%clk 0:00:06.4]} 49. Kc4 {[%clk 0:00:04.7]} 49... Ne5+
{[%clk 0:00:05.8]} 50. Kxc5 {[%clk 0:00:04.6]} 50... Nd7+ {[%clk 0:00:05.9]} 51.
Kd5 {[%clk 0:00:04.8]} 51... Kb6 {[%clk 0:00:04]} 52. Ke6 {[%clk 0:00:05.1]}
52... Nc5+ {[%clk 0:00:03.5]} 53. Kf6 {[%clk 0:00:05.5]} 53... Kxa6 {[%clk
0:00:04.4]} 54. Kxg6 {[%clk 0:00:05.9]} 54... Kb6 {[%clk 0:00:05.3]} 55. h4
{[%clk 0:00:06.3]} 55... Kc7 {[%clk 0:00:06.1]} 56. h5 {[%clk 0:00:06.8]} 56...
Kd7 {[%clk 0:00:07]} 57. h6 {[%clk 0:00:07.3]} 57... Ne6 {[%clk 0:00:07.3]} 58.
h7 {[%clk 0:00:07.1]} 58... Nf8+ {[%clk 0:00:08.2]} 59. Kg7 {[%clk 0:00:07.6]}
59... Nxh7 {[%clk 0:00:07.1]} 60. Kxh7 {[%clk 0:00:08.5]} 60... Ke6 {[%clk
0:00:07.7]} 61. Kg6 {[%clk 0:00:08.9]} 61... Ke7 {[%clk 0:00:08]} 62. g4 {[%clk
0:00:08.9]} 62... Ke6 {[%clk 0:00:08.6]} 63. g5 {[%clk 0:00:09.2]} 63... Ke7
{[%clk 0:00:08.9]} 64. Kh7 {[%clk 0:00:09.3]} 64... Kf8 {[%clk 0:00:09]} 65. g6
{[%clk 0:00:10.2]} 1-0

[Event "*** Titled Tuesday Blitz"]
[Site "Chess.com"]
[Date "2020.11.24"]
[Round "1"]
[White "RamyresCoelho"]
[Black "Piotrek1979"]
[Result "0-1"]
[WhiteElo "2086"]
[BlackElo "2497"]
[TimeControl "180+1"]
[EndTime "10:23:19 PST"]
[Termination "Piotrek1979 won by checkmate"]

1. e4 {[%clk 0:02:59]} 1... c6 {[%clk 0:02:58.1]} 2. d4 {[%clk 0:02:56]} 2... d5
{[%clk 0:02:55.9]} 3. Nc3 {[%clk 0:02:55.7]} 3... dxe4 {[%clk 0:02:55.1]} 4.
Nxe4 {[%clk 0:02:55.6]} 4... Bf5 {[%clk 0:02:55.7]} 5. Ng3 {[%clk 0:02:55.4]}
5... Bg6 {[%clk 0:02:56]} 6. Nf3 {[%clk 0:02:55.7]} 6... Nd7 {[%clk 0:02:56.2]}
7. h4 {[%clk 0:02:55.6]} 7... h6 {[%clk 0:02:56.6]} 8. h5 {[%clk 0:02:55.9]}
8... Bh7 {[%clk 0:02:56.8]} 9. Bd3 {[%clk 0:02:56.8]} 9... Bxd3 {[%clk
0:02:56.8]} 10. Qxd3 {[%clk 0:02:57.7]} 10... e6 {[%clk 0:02:57.3]} 11. Bd2
{[%clk 0:02:57.6]} 11... Ngf6 {[%clk 0:02:54.8]} 12. O-O-O {[%clk 0:02:57.5]}
12... Be7 {[%clk 0:02:54.8]} 13. Ne4 {[%clk 0:02:57.4]} 13... Nxe4 {[%clk
0:02:54]} 14. Qxe4 {[%clk 0:02:58.3]} 14... Nf6 {[%clk 0:02:54.4]} 15. Qe2
{[%clk 0:02:58.1]} 15... Qd5 {[%clk 0:02:55]} 16. c4 {[%clk 0:02:54.6]} 16...
Qe4 {[%clk 0:02:35.1]} 17. Qxe4 {[%clk 0:02:54.2]} 17... Nxe4 {[%clk 0:02:35.6]}
18. Be3 {[%clk 0:02:53.2]} 18... f5 {[%clk 0:02:30.2]} 19. Nd2 {[%clk
0:02:52.1]} 19... Nf6 {[%clk 0:02:18.1]} 20. f3 {[%clk 0:02:46.8]} 20... Kf7
{[%clk 0:02:02.3]} 21. Nb3 {[%clk 0:02:46]} 21... Rhd8 {[%clk 0:01:57.6]} 22.
Na5 {[%clk 0:02:42.8]} 22... Rd7 {[%clk 0:01:56.7]} 23. Kc2 {[%clk 0:02:20.7]}
23... Rad8 {[%clk 0:01:42.8]} 24. Nb3 {[%clk 0:02:16.7]} 24... b6 {[%clk
0:01:39.6]} 25. Rd3 {[%clk 0:02:11.6]} 25... c5 {[%clk 0:01:33.5]} 26. Rd2
{[%clk 0:02:07.2]} 26... cxd4 {[%clk 0:01:31.7]} 27. Rxd4 {[%clk 0:02:06.7]}
27... e5 {[%clk 0:01:28.9]} 28. Rxd7 {[%clk 0:02:06]} 28... Rxd7 {[%clk
0:01:29.1]} 29. Nd2 {[%clk 0:01:53]} 29... Ke6 {[%clk 0:01:07.9]} 30. b3 {[%clk
0:01:50.5]} 30... Bc5 {[%clk 0:01:04.9]} 31. Bxc5 {[%clk 0:01:47.9]} 31... bxc5
{[%clk 0:01:05]} 32. Kc3 {[%clk 0:01:45.6]} 32... Rd4 {[%clk 0:01:04]} 33. a3
{[%clk 0:01:40.3]} 33... a5 {[%clk 0:01:03.5]} 34. g3 {[%clk 0:01:25.5]} 34...
e4 {[%clk 0:00:47.9]} 35. fxe4 {[%clk 0:01:21.7]} 35... fxe4 {[%clk 0:00:48.8]}
36. Re1 {[%clk 0:01:15.6]} 36... Kf5 {[%clk 0:00:41.6]} 37. Rf1+ {[%clk
0:01:13.3]} 37... Ke5 {[%clk 0:00:38.6]} 38. Re1 {[%clk 0:01:13.6]} 38... Rd3+
{[%clk 0:00:38.9]} 39. Kc2 {[%clk 0:01:11.4]} 39... Rxg3 {[%clk 0:00:32]} 40.
Re2 {[%clk 0:00:47.1]} 40... a4 {[%clk 0:00:31]} 41. bxa4 {[%clk 0:00:42.3]}
41... Rxa3 {[%clk 0:00:30.4]} 42. Nb3 {[%clk 0:00:42.3]} 42... Ra2+ {[%clk
0:00:29.1]} 43. Kd1 {[%clk 0:00:42.3]} 43... Rxa4 {[%clk 0:00:24.6]} 44. Nxc5
{[%clk 0:00:40]} 44... Rxc4 {[%clk 0:00:24.5]} 45. Nd3+ {[%clk 0:00:39.4]} 45...
Kf5 {[%clk 0:00:20.9]} 46. Rf2+ {[%clk 0:00:34.9]} 46... Kg5 {[%clk 0:00:20.4]}
47. Ne5 {[%clk 0:00:32.5]} 47... Rd4+ {[%clk 0:00:20.6]} 48. Ke2 {[%clk
0:00:31.8]} 48... Kxh5 {[%clk 0:00:21]} 49. Rh2+ {[%clk 0:00:29.2]} 49... Kg5
{[%clk 0:00:20.7]} 50. Rg2+ {[%clk 0:00:27.2]} 50... Kf5 {[%clk 0:00:21]} 51.
Nc6 {[%clk 0:00:26]} 51... Rc4 {[%clk 0:00:17.4]} 52. Nd8 {[%clk 0:00:24.1]}
52... Rc2+ {[%clk 0:00:16.8]} 53. Kf1 {[%clk 0:00:24.4]} 53... Rxg2 {[%clk
0:00:17.7]} 54. Kxg2 {[%clk 0:00:25.3]} 54... g5 {[%clk 0:00:18.6]} 55. Nf7
{[%clk 0:00:24.7]} 55... h5 {[%clk 0:00:19.1]} 56. Nd6+ {[%clk 0:00:22.8]} 56...
Kf4 {[%clk 0:00:19.4]} 57. Nc4 {[%clk 0:00:23]} 57... g4 {[%clk 0:00:19.5]} 58.
Nd2 {[%clk 0:00:19.3]} 58... h4 {[%clk 0:00:20.4]} 59. Nf1 {[%clk 0:00:18.9]}
59... Nd5 {[%clk 0:00:20.3]} 60. Kf2 {[%clk 0:00:18.4]} 60... Nc3 {[%clk
0:00:20.4]} 61. Nh2 {[%clk 0:00:17.3]} 61... g3+ {[%clk 0:00:20.5]} 62. Kg2
{[%clk 0:00:16.7]} 62... gxh2 {[%clk 0:00:21.4]} 63. Kh1 {[%clk 0:00:16.7]}
63... e3 {[%clk 0:00:20.8]} 64. Kg2 {[%clk 0:00:17.2]} 64... e2 {[%clk
0:00:20.9]} 65. Kh3 {[%clk 0:00:16.9]} 65... h1=Q# {[%clk 0:00:19]} 0-1

[Event "*** Titled Tuesday Blitz"]
[Site "Chess.com"]
[Date "2020.11.24"]
[Round "1"]
[White "igorknyazev"]
[Black "Alohamora11"]
[Result "1/2-1/2"]
[WhiteElo "2050"]
[BlackElo "2478"]
[TimeControl "180+1"]
[EndTime "10:23:19 PST"]
[Termination "Game drawn by repetition"]

1. e4 {[%clk 0:01:44]} 1... c5 {[%clk 0:03:00]} 2. f4 {[%clk 0:01:43.5]} 2...
Nc6 {[%clk 0:02:58.9]} 3. Nf3 {[%clk 0:01:43.9]} 3... g6 {[%clk 0:02:58.8]} 4.
Bc4 {[%clk 0:01:44.3]} 4... Bg7 {[%clk 0:02:58.8]} 5. O-O {[%clk 0:01:45.1]}
5... e6 {[%clk 0:02:59.3]} 6. Qe1 {[%clk 0:01:44.7]} 6... Nge7 {[%clk
0:02:58.5]} 7. Nc3 {[%clk 0:01:45.2]} 7... O-O {[%clk 0:02:57.3]} 8. e5 {[%clk
0:01:45]} 8... Nd4 {[%clk 0:02:47]} 9. Nxd4 {[%clk 0:01:39.4]} 9... cxd4 {[%clk
0:02:47.9]} 10. Ne4 {[%clk 0:01:38.5]} 10... d5 {[%clk 0:02:45.1]} 11. exd6
{[%clk 0:01:37.4]} 11... Nf5 {[%clk 0:02:45.7]} 12. d3 {[%clk 0:01:33.8]} 12...
Nxd6 {[%clk 0:02:46]} 13. Bb3 {[%clk 0:01:30.7]} 13... b6 {[%clk 0:02:36.6]} 14.
Nxd6 {[%clk 0:01:28.3]} 14... Qxd6 {[%clk 0:02:36.5]} 15. Qe4 {[%clk 0:01:28.7]}
15... Rb8 {[%clk 0:02:27.1]} 16. Bd2 {[%clk 0:01:18]} 16... Bb7 {[%clk
0:02:27.3]} 17. Qe2 {[%clk 0:01:18.2]} 17... b5 {[%clk 0:02:13.7]} 18. a3 {[%clk
0:01:16.7]} 18... Rfe8 {[%clk 0:02:09.3]} 19. Bb4 {[%clk 0:01:15.5]} 19... Qd8
{[%clk 0:02:09.4]} 20. Rac1 {[%clk 0:01:11.5]} 20... a5 {[%clk 0:02:09.5]} 21.
Be1 {[%clk 0:01:09.5]} 21... a4 {[%clk 0:01:41.9]} 22. Ba2 {[%clk 0:01:09]}
22... Bd5 {[%clk 0:01:42.8]} 23. c4 {[%clk 0:01:01.7]} 23... bxc4 {[%clk
0:01:28]} 24. Bxc4 {[%clk 0:01:00.4]} 24... Bxc4 {[%clk 0:01:27.4]} 25. Rxc4
{[%clk 0:00:59.5]} 25... Qb6 {[%clk 0:01:23.4]} 26. Bb4 {[%clk 0:00:56.9]} 26...
Rec8 {[%clk 0:01:21.5]} 27. Qc2 {[%clk 0:00:56]} 27... Rxc4 {[%clk 0:01:21.5]}
28. Qxc4 {[%clk 0:00:55.4]} 28... Qb7 {[%clk 0:01:16.6]} 29. Rc1 {[%clk
0:00:55.1]} 29... Bf8 {[%clk 0:01:14.3]} 30. Bxf8 {[%clk 0:00:50.9]} 30... Kxf8
{[%clk 0:01:13]} 31. Qxd4 {[%clk 0:00:48.5]} 31... Qb6 {[%clk 0:00:58.1]} 32.
Rc8+ {[%clk 0:00:44.6]} 32... Ke7 {[%clk 0:00:58.6]} 33. Qxb6 {[%clk 0:00:39.6]}
33... Rxb6 {[%clk 0:00:59.5]} 34. Rc2 {[%clk 0:00:36.3]} 34... Rb3 {[%clk
0:00:54.5]} 35. d4 {[%clk 0:00:36.5]} 35... Kd6 {[%clk 0:00:53]} 36. Kf2 {[%clk
0:00:30.5]} 36... Kd5 {[%clk 0:00:49.2]} 37. Rc7 {[%clk 0:00:30.2]} 37... Rxb2+
{[%clk 0:00:49.6]} 38. Kf3 {[%clk 0:00:28.4]} 38... Rb3+ {[%clk 0:00:49.2]} 39.
Kg4 {[%clk 0:00:28.6]} 39... f5+ {[%clk 0:00:39.1]} 40. Kg5 {[%clk 0:00:28.2]}
40... Rxa3 {[%clk 0:00:38.6]} 41. Rxh7 {[%clk 0:00:28.3]} 41... Ra2 {[%clk
0:00:38.7]} 42. g3 {[%clk 0:00:27.2]} 42... a3 {[%clk 0:00:39.3]} 43. Kxg6
{[%clk 0:00:27.4]} 43... Kxd4 {[%clk 0:00:34.4]} 44. Ra7 {[%clk 0:00:27]} 44...
Kc4 {[%clk 0:00:29.7]} 45. h4 {[%clk 0:00:27.4]} 45... Kb3 {[%clk 0:00:29.5]}
46. Rb7+ {[%clk 0:00:26.6]} 46... Kc3 {[%clk 0:00:29.3]} 47. Ra7 {[%clk
0:00:26.7]} 47... Kb2 {[%clk 0:00:28.6]} 48. Rb7+ {[%clk 0:00:26.7]} 48... Ka1
{[%clk 0:00:28.7]} 49. h5 {[%clk 0:00:26.3]} 49... Rg2 {[%clk 0:00:28.1]} 50. h6
{[%clk 0:00:21.5]} 50... Rxg3+ {[%clk 0:00:27.3]} 51. Kf6 {[%clk 0:00:21.6]}
51... Rh3 {[%clk 0:00:27.1]} 52. h7 {[%clk 0:00:18.3]} 52... a2 {[%clk
0:00:27.1]} 53. Kg7 {[%clk 0:00:17.8]} 53... Rg3+ {[%clk 0:00:27.5]} 54. Kf6
{[%clk 0:00:17.1]} 54... Rh3 {[%clk 0:00:27.6]} 55. Kg7 {[%clk 0:00:17.1]} 55...
Rg3+ {[%clk 0:00:14.5]} 56. Kf8 {[%clk 0:00:16.7]} 56... Rh3 {[%clk 0:00:14.6]}
57. Kg8 {[%clk 0:00:17]} 57... Rg3+ {[%clk 0:00:12.1]} 58. Kf7 {[%clk 0:00:16]}
58... Rh3 {[%clk 0:00:12.3]} 59. Kg8 {[%clk 0:00:16.1]} 59... Rg3+ {[%clk
0:00:12]} 60. Kf7 {[%clk 0:00:14.2]} 60... Rh3 {[%clk 0:00:09]} 61. Kg8 {[%clk
0:00:11.7]} 1/2-1/2

[Event "*** Titled Tuesday Blitz"]
[Site "Chess.com"]
[Date "2020.11.24"]
[Round "1"]
[White "HackingKid98"]
[Black "vlad10898"]
[Result "0-1"]
[WhiteElo "2353"]
[BlackElo "2683"]
[TimeControl "180+1"]
[EndTime "10:23:23 PST"]
[Termination "vlad10898 won on time"]

1. d4 {[%clk 0:03:00]} 1... Nf6 {[%clk 0:02:59.8]} 2. c4 {[%clk 0:02:58.6]} 2...
g6 {[%clk 0:02:59.7]} 3. g3 {[%clk 0:02:58.5]} 3... Bg7 {[%clk 0:03:00]} 4. Bg2
{[%clk 0:02:51.9]} 4... O-O {[%clk 0:03:00.6]} 5. Nf3 {[%clk 0:02:35.1]} 5... d6
{[%clk 0:03:01]} 6. O-O {[%clk 0:02:33]} 6... Nc6 {[%clk 0:03:01.7]} 7. Nc3
{[%clk 0:02:30.6]} 7... a6 {[%clk 0:03:02.2]} 8. b3 {[%clk 0:02:23]} 8... Rb8
{[%clk 0:03:02.3]} 9. d5 {[%clk 0:02:21.5]} 9... Na5 {[%clk 0:03:01.5]} 10. Bg5
{[%clk 0:02:19.9]} 10... c5 {[%clk 0:03:01.7]} 11. dxc6 {[%clk 0:02:18.5]} 11...
Nxc6 {[%clk 0:03:02.3]} 12. Qd2 {[%clk 0:02:17.1]} 12... Bf5 {[%clk 0:03:01.4]}
13. Rac1 {[%clk 0:02:12.7]} 13... Qd7 {[%clk 0:03:01.6]} 14. Rfd1 {[%clk
0:02:09.8]} 14... Bh3 {[%clk 0:03:00.7]} 15. Bh1 {[%clk 0:02:05]} 15... Rfc8
{[%clk 0:03:00.8]} 16. Nd5 {[%clk 0:01:31.3]} 16... Nxd5 {[%clk 0:03:00.4]} 17.
cxd5 {[%clk 0:01:15.8]} 17... Ne5 {[%clk 0:03:00.4]} 18. Nxe5 {[%clk 0:01:08.6]}
18... Bxe5 {[%clk 0:03:01.3]} 19. Be3 {[%clk 0:01:05.8]} 19... Rxc1 {[%clk
0:02:51.8]} 20. Rxc1 {[%clk 0:01:04.2]} 20... Rc8 {[%clk 0:02:52.1]} 21. Rxc8+
{[%clk 0:00:53.9]} 21... Qxc8 {[%clk 0:02:53]} 22. Qc1 {[%clk 0:00:54.6]} 22...
Qxc1+ {[%clk 0:02:31.1]} 23. Bxc1 {[%clk 0:00:55.5]} 23... Kf8 {[%clk 0:02:32]}
24. f4 {[%clk 0:00:51]} 24... Bd4+ {[%clk 0:02:24.9]} 25. e3 {[%clk 0:00:49.7]}
25... Bc5 {[%clk 0:02:24.6]} 26. Kf2 {[%clk 0:00:41.5]} 26... Bf5 {[%clk
0:02:24.8]} 27. Ke2 {[%clk 0:00:24.7]} 27... Bb1 {[%clk 0:02:24.8]} 28. a3
{[%clk 0:00:23.3]} 28... a5 {[%clk 0:02:25.1]} 29. Kd2 {[%clk 0:00:20.4]} 29...
f5 {[%clk 0:02:19.7]} 30. Bf3 {[%clk 0:00:19]} 30... Kf7 {[%clk 0:02:15.2]} 31.
Be2 {[%clk 0:00:17.1]} 31... Be4 {[%clk 0:02:13.2]} 32. Bc4 {[%clk 0:00:16.7]}
32... g5 {[%clk 0:02:09.9]} 33. a4 {[%clk 0:00:16.2]} 33... Kg6 {[%clk
0:02:07.8]} 34. Bb2 {[%clk 0:00:14.6]} 34... gxf4 {[%clk 0:02:07.5]} 35. gxf4
{[%clk 0:00:13.5]} 35... Kh5 {[%clk 0:02:02]} 36. Bg7 {[%clk 0:00:12.4]} 36...
Bb6 {[%clk 0:02:02.4]} 37. Bf8 {[%clk 0:00:11.6]} 37... Bd8 {[%clk 0:02:02.1]}
38. Ke2 {[%clk 0:00:11]} 38... Kg6 {[%clk 0:02:02.2]} 39. Kf2 {[%clk 0:00:10.1]}
39... Kf7 {[%clk 0:01:46.3]} 40. Bh6 {[%clk 0:00:09.3]} 40... Bb6 {[%clk
0:01:47]} 41. Bg5 {[%clk 0:00:08.4]} 41... Bc5 {[%clk 0:01:40.7]} 42. Bh4 {[%clk
0:00:09.3]} 42... Bb4 {[%clk 0:01:40.7]} 43. Bg5 {[%clk 0:00:08.8]} 43... Bc3
{[%clk 0:01:40.3]} 44. Bh4 {[%clk 0:00:08.7]} 44... h6 {[%clk 0:01:40.9]} 45.
Bg3 {[%clk 0:00:08.4]} 45... Bf6 {[%clk 0:01:40.6]} 46. Ke2 {[%clk 0:00:08.3]}
46... h5 {[%clk 0:01:41]} 47. Be1 {[%clk 0:00:08]} 47... b6 {[%clk 0:01:41.5]}
48. h4 {[%clk 0:00:07.8]} 48... Ke8 {[%clk 0:01:37.1]} 49. Kd2 {[%clk
0:00:07.7]} 49... Kd7 {[%clk 0:01:36.2]} 50. Bf2 {[%clk 0:00:07.5]} 50... Kc7
{[%clk 0:01:29.9]} 51. Bg3 {[%clk 0:00:07.5]} 51... e6 {[%clk 0:01:27.7]} 52.
dxe6 {[%clk 0:00:06]} 52... d5 {[%clk 0:01:28.4]} 53. Bd3 {[%clk 0:00:05.8]}
53... Kd6 {[%clk 0:01:28.2]} 54. Bxe4 {[%clk 0:00:05.6]} 54... dxe4 {[%clk
0:01:25.3]} 55. Kc2 {[%clk 0:00:05]} 55... Kxe6 {[%clk 0:01:25.7]} 56. Be1
{[%clk 0:00:05.1]} 56... Kd5 {[%clk 0:01:25.6]} 57. Kd1 {[%clk 0:00:03.4]} 57...
Be7 {[%clk 0:01:22.3]} 58. Kc2 {[%clk 0:00:04.3]} 58... Bc5 {[%clk 0:01:21.9]}
59. Bd2 {[%clk 0:00:04.9]} 59... Be7 {[%clk 0:01:15.2]} 60. Be1 {[%clk
0:00:04.2]} 60... Kc5 {[%clk 0:01:15.7]} 61. Kd1 {[%clk 0:00:03.2]} 61... Bd8
{[%clk 0:01:14.1]} 62. Ke2 {[%clk 0:00:02.1]} 62... b5 {[%clk 0:01:14.6]} 63.
Kd1 {[%clk 0:00:02.1]} 63... bxa4 {[%clk 0:01:14.8]} 64. bxa4 {[%clk 0:00:03]}
64... Kc4 {[%clk 0:01:15.3]} 65. Kc2 {[%clk 0:00:03.4]} 65... Bb6 {[%clk
0:01:07.8]} 66. Bd2 {[%clk 0:00:03.2]} 66... Bc7 {[%clk 0:01:08.4]} 67. Be1
{[%clk 0:00:02.5]} 67... Bd8 {[%clk 0:01:08.8]} 68. Bd2 {[%clk 0:00:02.6]} 68...
Bxh4 {[%clk 0:01:01]} 69. Bxa5 {[%clk 0:00:03]} 69... Bg3 {[%clk 0:01:00.8]} 70.
Bd2 {[%clk 0:00:03.4]} 70... h4 {[%clk 0:01:01.2]} 71. a5 {[%clk 0:00:04.2]}
71... Kb5 {[%clk 0:01:01.4]} 72. Be1 {[%clk 0:00:01.6]} 72... h3 {[%clk
0:01:01.9]} 0-1

[Event "*** Titled Tuesday Blitz"]
[Site "Chess.com"]
[Date "2020.11.24"]
[Round "1"]
[White "Chessdude1987"]
[Black "1977Ivan"]
[Result "0-1"]
[WhiteElo "2346"]
[BlackElo "2665"]
[TimeControl "180+1"]
[EndTime "10:23:24 PST"]
[Termination "1977Ivan won by checkmate"]

1. e4 {[%clk 0:03:00.9]} 1... c5 {[%clk 0:02:59.6]} 2. Nc3 {[%clk 0:03:00.2]}
2... Nc6 {[%clk 0:02:58.3]} 3. g3 {[%clk 0:02:58.6]} 3... g6 {[%clk 0:02:57.4]}
4. Bg2 {[%clk 0:02:58.5]} 4... Bg7 {[%clk 0:02:58.1]} 5. d3 {[%clk 0:02:58.5]}
5... d6 {[%clk 0:02:58.7]} 6. Be3 {[%clk 0:02:58.3]} 6... Nh6 {[%clk 0:02:59.2]}
7. h3 {[%clk 0:02:45.7]} 7... f5 {[%clk 0:02:59.5]} 8. Qd2 {[%clk 0:02:45.2]}
8... Nf7 {[%clk 0:02:59.2]} 9. f4 {[%clk 0:02:39.1]} 9... O-O {[%clk 0:02:56.9]}
10. Nf3 {[%clk 0:02:35.7]} 10... Nd4 {[%clk 0:02:57.4]} 11. O-O {[%clk 0:02:32]}
11... Bd7 {[%clk 0:02:36.4]} 12. Nd1 {[%clk 0:02:25.9]} 12... Nxf3+ {[%clk
0:02:31.7]} 13. Rxf3 {[%clk 0:02:25.3]} 13... fxe4 {[%clk 0:02:31.1]} 14. dxe4
{[%clk 0:02:24.9]} 14... Bc6 {[%clk 0:02:31.7]} 15. Rf2 {[%clk 0:02:12.7]} 15...
Qd7 {[%clk 0:02:28.9]} 16. c4 {[%clk 0:02:08.3]} 16... Rab8 {[%clk 0:02:17.7]}
17. Nc3 {[%clk 0:02:07.6]} 17... a6 {[%clk 0:02:13.3]} 18. a4 {[%clk 0:02:03.5]}
18... b5 {[%clk 0:02:06.5]} 19. axb5 {[%clk 0:02:03.3]} 19... axb5 {[%clk
0:02:07.4]} 20. cxb5 {[%clk 0:02:03.2]} 20... Bxb5 {[%clk 0:02:07]} 21. Kh2
{[%clk 0:01:37.5]} 21... Bc6 {[%clk 0:02:04.2]} 22. h4 {[%clk 0:01:34.4]} 22...
Rb4 {[%clk 0:02:02.4]} 23. Qd3 {[%clk 0:01:20]} 23... Qb7 {[%clk 0:01:59.6]} 24.
Nd5 {[%clk 0:01:15.6]} 24... Bxd5 {[%clk 0:01:58.3]} 25. exd5 {[%clk 0:01:15.4]}
25... Nh6 {[%clk 0:01:56.7]} 26. Bh3 {[%clk 0:01:11.7]} 26... Rxb2 {[%clk
0:01:52.9]} 27. Re1 {[%clk 0:01:09.7]} 27... Nf5 {[%clk 0:01:49.9]} 28. Bxf5
{[%clk 0:01:09]} 28... Rxf5 {[%clk 0:01:50.6]} 29. Rxb2 {[%clk 0:01:05.3]} 29...
Qxb2+ {[%clk 0:01:48.4]} 30. Re2 {[%clk 0:01:05]} 30... Qb7 {[%clk 0:01:45.8]}
31. Rd2 {[%clk 0:01:03.1]} 31... h5 {[%clk 0:01:44.6]} 32. Qe4 {[%clk
0:01:02.2]} 32... Kh7 {[%clk 0:01:44.3]} 33. Kh3 {[%clk 0:01:00.1]} 33... Bf6
{[%clk 0:01:40]} 34. Qe6 {[%clk 0:00:51.3]} 34... Bg7 {[%clk 0:01:39.5]} 35. g4
{[%clk 0:00:50.3]} 35... hxg4+ {[%clk 0:01:34.6]} 36. Kxg4 {[%clk 0:00:50.4]}
36... Rf6 {[%clk 0:01:34.8]} 37. Qe4 {[%clk 0:00:47.7]} 37... e5 {[%clk
0:01:23.9]} 38. fxe5 {[%clk 0:00:43.5]} 38... dxe5 {[%clk 0:01:18]} 39. h5
{[%clk 0:00:40.2]} 39... Qd7+ {[%clk 0:01:03.5]} 40. Kg3 {[%clk 0:00:38.7]}
40... c4 {[%clk 0:00:46.8]} 41. Rh2 {[%clk 0:00:35.4]} 41... Kg8 {[%clk
0:00:43.9]} 42. hxg6 {[%clk 0:00:35.3]} 42... c3 {[%clk 0:00:39.1]} 43. Rf2
{[%clk 0:00:32.6]} 43... Rxf2 {[%clk 0:00:35.6]} 44. Kxf2 {[%clk 0:00:31.7]}
44... Bf6 {[%clk 0:00:33.4]} 45. Ke2 {[%clk 0:00:29.5]} 45... Qb5+ {[%clk
0:00:31]} 46. Qd3 {[%clk 0:00:29]} 46... Qb2+ {[%clk 0:00:28.4]} 47. Kd1 {[%clk
0:00:28]} 47... Kg7 {[%clk 0:00:21.2]} 48. Qc2 {[%clk 0:00:27.2]} 48... e4
{[%clk 0:00:20]} 49. Qxb2 {[%clk 0:00:26.4]} 49... cxb2 {[%clk 0:00:19.9]} 50.
Kc2 {[%clk 0:00:25.1]} 50... Kf8 {[%clk 0:00:18.5]} 51. Bc5+ {[%clk 0:00:23.2]}
51... Ke8 {[%clk 0:00:18.2]} 52. Ba3 {[%clk 0:00:23]} 52... e3 {[%clk
0:00:16.1]} 53. Bb4 {[%clk 0:00:20.7]} 53... e2 {[%clk 0:00:15.1]} 54. Kb1
{[%clk 0:00:20]} 54... Kd7 {[%clk 0:00:14.9]} 55. Bd2 {[%clk 0:00:18.4]} 55...
Bg7 {[%clk 0:00:14.5]} 56. Kc2 {[%clk 0:00:17.6]} 56... Kd6 {[%clk 0:00:14.4]}
57. Bf4+ {[%clk 0:00:16.8]} 57... Kxd5 {[%clk 0:00:14.3]} 58. Bd2 {[%clk
0:00:16.4]} 58... Ke4 {[%clk 0:00:14.4]} 59. Be1 {[%clk 0:00:16.1]} 59... Kf3
{[%clk 0:00:14.4]} 60. Bd2 {[%clk 0:00:16.1]} 60... Kf2 {[%clk 0:00:14.6]} 61.
Bb4 {[%clk 0:00:15.3]} 61... e1=Q {[%clk 0:00:14.8]} 62. Bxe1+ {[%clk
0:00:15.3]} 62... Kxe1 {[%clk 0:00:15]} 63. Kb1 {[%clk 0:00:15.7]} 63... Kd2
{[%clk 0:00:15.4]} 64. Ka2 {[%clk 0:00:15.6]} 64... Kc2 {[%clk 0:00:15.2]} 65.
Ka3 {[%clk 0:00:15.9]} 65... b1=Q {[%clk 0:00:15.5]} 66. Ka4 {[%clk 0:00:16.2]}
66... Qb3+ {[%clk 0:00:15.4]} 67. Ka5 {[%clk 0:00:16.3]} 67... Kc3 {[%clk
0:00:15.3]} 68. Ka6 {[%clk 0:00:16.2]} 68... Kc4 {[%clk 0:00:15.6]} 69. Ka7
{[%clk 0:00:16.2]} 69... Kc5 {[%clk 0:00:15.8]} 70. Ka8 {[%clk 0:00:15.7]} 70...
Kc6 {[%clk 0:00:16]} 71. Ka7 {[%clk 0:00:16.1]} 71... Qb7# {[%clk 0:00:16.6]}
0-1